Cogmind - Beta 13 @@@ ROGUE MODE // 2024.04.05 @ 10:35:22 Player: TKR101010 Result: Self-destructed Performance ------------- Evolutions (1) 500 Regions Visited (2) 400 Robots Destroyed (9) 45 Value Destroyed (317) 317 Prototype IDs (2) 40 Alien Tech Used (0) 0 Bonus (200) 200 TOTAL SCORE: 1502 Bonus ------- Pacifist 200 Cogmind --------- Core Integrity 324/400 Matter 252/300 Energy 250/250 System Corruption 0% Temperature Hot (207) Movement Treading (240) Ox1 Location -9/Materials Parts ------- > --- POWER (2) -------- Ion Engine > --- PROPULSION (2) --- Light Treads Light Treads > --- UTILITY (3) ------ High-capacity Storage Unit Signal Interpreter ECM Suite > --- WEAPON (2) ------- Beam Rifle Assault Rifle > --- INVENTORY (20) --- Light Ion Engine Hover Unit Hover Unit Heat Sink Cooling System Sensor Array Small Laser Assault Rifle Datajack Peak State ------------ > --- POWER ------------ Ion Engine Ion Engine > --- PROPULSION ------- Light Treads Light Treads > --- UTILITY ---------- High-capacity Storage Unit Signal Interpreter ECM Suite > --- WEAPON ----------- Beam Rifle Assault Rifle > --- INVENTORY -------- Light Ion Engine Hover Unit Hover Unit Heat Sink Cooling System Sensor Array Small Laser Assault Rifle Datajack [Rating: 11] Favorites ----------- Power Ion Engine Engine Ion Engine Propulsion Light Treads Treads Light Treads Utility ECM Suite Device ECM Suite Storage Huge Storage Unit Processor Signal Interpreter Weapon Assault Rifle Energy Gun EM Pulse Gun Ballistic Gun Assault Rifle Build | -11 -10 -9 ------- Run | Yrd Mat Mat Slots Evolved 2 | . . 2 Power 1 | . . 1 Propulsion . | . . . Utility 1 | . . 1 Weapon . | . . . Parts Attached 12 | 6 2 4 Power 2 | 1 . 1 Engine 2 | 1 . 1 Core . | . . . Reactor . | . . . Propulsion 2 | 2 . . Treads 2 | 2 . . Leg . | . . . Wheel . | . . . Hover . | . . . Flight . | . . . Utility 5 | 1 2 2 Device 1 | . 1 . Storage 3 | 1 1 1 Processor 1 | . . 1 Hackware . | . . . Protection . | . . . Artifact . | . . . Weapon 3 | 2 . 1 Energy Gun 2 | 1 . 1 Energy Cannon . | . . . Ballistic Gun 1 | 1 . . Ballistic Cannon . | . . . Launcher . | . . . Special Weapon . | . . . Impact Weapon . | . . . Slashing Weapon . | . . . Piercing Weapon . | . . . Special Melee Weapon . | . . . Unidentified Prototypes . | . . . Parts Lost 2 | . . 2 Power 1 | . . 1 Propulsion . | . . . Utility . | . . . Weapon 1 | . . 1 Highest Loss Streak 2 | . . 2 To Critical Strikes . | . . . Average Slot Usage (%) 95 | . 93 96 Engine 19 | . 14 21 Treads 23 | . 28 22 Device 10 | . 8 11 Storage 11 | . 14 11 Processor 6 | . . 8 Energy Gun 11 | . 14 11 Ballistic Gun 11 | . 14 11 Naked Turns . | . . . Heaviest Build 96 | 14 91 96 Greatest Support 40 | 40 40 40 Greatest Overweight (x) 4 | 4 2 2 Average Overweight (x) 1 | 1 1 1 Largest Inventory Capacity 25 | 8 25 25 Average Capacity 20 | 7 22 23 Most Carried 11 | 3 5 11 Average Carried 6 | 1 3 7 Final Capacity 25 | 8 25 20 Final Carried 9 | 2 4 9 Class Distribution -------------------- 100% | Mutant Dominant Class ---------------- Mutant | -10/Materials Mutant | -9/Materials Resources | -11 -10 -9 ----------- Run | Yrd Mat Mat Matter Collected 355 | 164 . 191 Remotely . | . . . Salvage Created 447 | . . 447 Parts 30 | . . 30 Haulers Intercepted . | . . . Recyclers Shooed . | . . . Parts Field Recycled . | . . . Retrieved Matter . | . . . Parts Self-Destructed . | . . . Prevented . | . . . Kills | -11 -10 -9 ------- Run | Yrd Mat Mat Combat Hostiles Destroyed 7 | . . 7 Guns 5 | . . 5 AOE 2 | . . 2 Classes Destroyed 5 | . . 5 Recycler 1 | . . 1 Watcher 1 | . . 1 Grunt 2 | . . 2 Duelist 1 | . . 1 Sentry 4 | . . 4 Best Kill Streak 2 | . . 2 Combat Bots Only 2 | . . 2 Max Kills in Single Turn 1 | . . 1 Gunslinging . | . . . Exploded 1 | . . 1 Melee . | . . . Uniques/NPCs Destroyed . | . . . Combat | -11 -10 -9 -------- Run | Yrd Mat Mat Hostile Shots Fired 50 | . . 50 Missed 17 | . . 17 Damage Taken 472 | . . 472 Core 76 | . . 76 Absorbed by Shields . | . . . Core Remaining (%) 100 | 100 100 . Volleys Fired 31 | . . 31 Largest 2 | . . 2 Hottest 76 | . . 76 Shots Fired 62 | . . 62 Gun 62 | . . 62 Cannon . | . . . Launcher . | . . . Special . | . . . Kinetic 31 | . . 31 Thermal 12 | . . 12 Explosive . | . . . Electromagnetic 19 | . . 19 Robot Hit Streak 6 | . . 6 Robot Miss Streak 3 | . . 3 Penetration Max . | . . . Secondary Targets 1 | . . 1 Max Gunslinging Chain 1 | . . 1 Shots Hit Robots 34 | . . 34 Core Hits 16 | . . 16 Critical Kills . | . . . Critical Parts Destroyed . | . . . Critical Strikes 1 | . . 1 Burn 1 | . . 1 Melee Attacks . | . . . Impact . | . . . Slashing . | . . . Piercing . | . . . Sneak Attacks . | . . . Combat Hostiles . | . . . Follow-up Attacks . | . . . Damage Inflicted 570 | . . 570 Guns 445 | . . 445 Cannons . | . . . Explosions 125 | . . 125 Melee . | . . . Ramming . | . . . Kinetic 192 | . . 192 Thermal 227 | . . 227 Explosive . | . . . Electromagnetic 151 | . . 151 Impact . | . . . Slashing . | . . . Piercing . | . . . Highest Corruption . | . . . Average Corruption . | . . . Corruption Purged . | . . . Corruption Blocked . | . . . Overload Shots . | . . . Overflow Damage . | . . . Projectiles . | . . . Explosions . | . . . Melee . | . . . Knockbacks . | . . . Impact . | . . . Kinetic . | . . . Secondary . | . . . Self-Inflicted Damage 39 | . . 39 Shots 1 | . . 1 Rammed . | . . . Targets Rammed . | . . . Kicked . | . . . Crushed . | . . . Highest Temperature 201 | . . 201 Average Temperature 63 | . . 63 Received Heat Transfer 162 | . . 162 Siege Activations . | . . . Robots Corrupted . | . . . Combat Hostiles . | . . . Parts Fried . | . . . Impact Corruptions . | . . . Robots Melted . | . . . Combat Hostiles . | . . . Parts Melted . | . . . Heat Transferred 433 | . . 433 Parts Sabotaged . | . . . Parts Stolen . | . . . Parts Stripped . | . . . Power Chain Reactions 3 | . . 3 Alert | -11 -10 -9 ------- Run | Yrd Mat Mat Peak Influence 174 | . 15 174 Initial 5 | . . 5 Average 57 | . 14 81 Maximum Alert Level . | . . . Low Security (%) 100 | 100 100 100 Level 1 . | . . . Level 2 . | . . . Level 3 . | . . . Level 4 . | . . . Level 5 . | . . . High Security . | . . . Max Security . | . . . Squads Dispatched 2 | . 2 . Investigation 1 | . 1 . Extermination . | . . . Reinforcement 1 | . 1 . Assault . | . . . Garrison . | . . . Intercept . | . . . Searches Triggered . | . . . Construction Impeded . | . . . Haulers Reinforced . | . . . Active Scanning Responses . | . . . Cargo Convoy Interrupts . | . . . Stealth | -11 -10 -9 --------- Run | Yrd Mat Mat Distress Signals 1 | . . 1 Communications Jammed . | . . . Distress Signals . | . . . Times Spotted 10 | . 1 9 Peak Tracking Total 3 | . 3 3 Tactical Retreats 1 | . 1 . Traps | -11 -10 -9 ------- Run | Yrd Mat Mat Traps Triggered 1 | . 1 . Indirectly . | . . . Trap Hack Attempts . | . . . Triggered . | . . . Disarmed . | . . . Reprogrammed . | . . . Reused . | . . . Traps Extracted . | . . . Installed . | . . . Triggered . | . . . Machines | -11 -10 -9 ---------- Run | Yrd Mat Mat Machines Disabled . | . . . Max in Single Turn . | . . . Machines Repaired . | . . . Machines Dismantled . | . . . Machines Sabotaged . | . . . Overloaded Fab Kills . | . . . Hacking | -11 -10 -9 --------- Run | Yrd Mat Mat Machines Accessed 1 | . . 1 Terminals 1 | . . 1 Fabricators . | . . . Repair Stations . | . . . Recycling Units . | . . . Scanalyzers . | . . . Garrison Access . | . . . Total Hacks 3 | . . 3 Successful 3 | . . 3 Failed . | . . . Catastrophic . | . . . Database Lockouts . | . . . Manual . | . . . Terminals 3 | . . 3 Fabricators . | . . . Repair Stations . | . . . Recycling Units . | . . . Scanalyzers . | . . . Garrison Access . | . . . Terminal Hacks 3 | . . 3 Record 2 | . . 2 Prototype ID Bank 1 | . . 1 Fabricator Hacks . | . . . Repair Station Hacks . | . . . Recycling Unit Hacks . | . . . Scanalyzer . | . . . Garrison Access Hacks . | . . . Unauthorized Hacks . | . . . Terminals . | . . . Fabricators . | . . . Repair Stations . | . . . Recycling Units . | . . . Scanalyzers . | . . . Garrison Access . | . . . Data Cores Recovered . | . . . Used . | . . . Hacking Detections 1 | . . 1 Full Trace Events . | . . . Feedback Events . | . . . Feedback Blocked . | . . . Robot Schematics Acquired . | . . . Robots Built . | . . . Authchips . | . . . Time . | . . . Total Robot Build Rating . | . . . Part Schematics Acquired . | . . . Parts Built . | . . . Authchips . | . . . Time . | . . . Total Part Build Rating . | . . . Parts Repaired . | . . . Time . | . . . Parts Recycled . | . . . Recycled Matter . | . . . Retrieved Matter . | . . . Retrieved Components . | . . . Parts Scanalyzed . | . . . Part Schematics Acquired . | . . . Parts Damaged . | . . . Bothacking | -11 -10 -9 ------------ Run | Yrd Mat Mat Used RIF Installer . | . . . Robots Hacked . | . . . Non-combat . | . . . Combat . | . . . Robot Hacks Applied . | . . . Relay Couplers Released . | . . . Fabnet Peak Effective % . | . . . Robots Rewired . | . . . Allies Hacked . | . . . Hacks Repelled . | . . . Allies | -11 -10 -9 -------- Run | Yrd Mat Mat Total Allies . | . . . Largest Group . | . . . Highest-Rated Group . | . . . Highest-Rated Ally . | . . . Total Orders . | . . . Ally Attacks . | . . . Total Damage . | . . . Kills . | . . . Allies Corrupted . | . . . Allies Melted . | . . . Intel | -11 -10 -9 ------- Run | Yrd Mat Mat Robot Analysis Total . | . . . Derelict Logs Recovered . | . . . Drone Launches . | . . . Drone Recoveries . | . . . Exploration | -11 -10 -9 ------------- Run | Yrd Mat Mat Turns Passed 710 | 93 144 473 Spaces Moved 224 | 45 51 128 Core 18 | 18 . . Treads 206 | 27 51 128 Legs . | . . . Wheels . | . . . Hover . | . . . Flight . | . . . Fastest Speed 50 | 50 160 240 Average Speed 261 | 178 276 284 Slowest Speed 320 | 250 320 320 Overloaded Moves . | . . . Propulsion Burnouts . | . . . Robots Hopped . | . . . Cave-ins Triggered . | . . . Exploration Rate (%) 13 | 6 14 19 Regions Visited 2 Branch Regions . Pre-discovered Areas . | . . . Known Exits Taken . | . . . Unknown Exits Taken 2 | 1 1 . Scrap Searched . | . . . Spaces Dug . | . . . Terrain Destroyed 11 | . . 11 Melee . | . . . Projectile . | . . . AOE 11 | . . 11 Terrain Rammed . | . . . Walls Destroyed . | . . . Machines Disabled . | . . . Actions | -11 -10 -9 --------- Run | Yrd Mat Mat Total 289 | 58 56 175 Wait . | . . . Move 222 | 44 50 128 Hop . | . . . Pick Up 21 | 8 3 10 Fast Attach . | . . . Attach 11 | 6 2 3 Detach 1 | . 1 . Swap 1 | . . 1 Drop 2 | . . 2 Fire 31 | . . 31 Melee . | . . . Ram . | . . . Kick . | . . . Crush . | . . . Escape Stasis . | . . . Rewire . | . . . Trap . | . . . Miscellaneous . | . . . Route ------- -11/Scrapyard -10/Materials -9/Materials History --------- Turn | Location | Event 35 | -11/Scrapyard | Discovered new exit (range 14) 94 | -11/Scrapyard | Entered Materials 231 | -10/Materials | Discovered new exit (range 3) 238 | -10/Materials | Entered another Materials area 238 | -9/Materials | Evolved 2 slots: Power x1, Utility x1 316 | -9/Materials | Build established: Mutant 711 | -9/Materials | Self-destructed Last Messages --------------- Engine. 00670_ EM Pulse Gun destroyed. 00682_ R-06 Scavenger collects Heat Sink. 00685_ Y-45 Defender suffers critical hit (Burn). 00685_ Y-45 Defender destroyed. 00685_ Switching to secondary target: G-34 Mercenary. 00686_ Ion Engine destroyed. 00690_ K-01 Serf collects debris. 00691_ K-01 Serf destroyed. 00693_ U-05 Engineer lays Concrete. 00695_ U-05 Engineer builds a Wall. 00696_ R-06 Scavenger collects Wheel. 00699_ R-06 Scavenger destroyed. 00699_ U-05 Engineer lays Concrete. 00701_ R-06 Scavenger collects Wheel. 00702_ U-05 Engineer builds a Wall. 00706_ R-06 Scavenger collects Wheel. 00706_ U-05 Engineer lays Concrete. Map ----- +----------------------------------------------------+ | | | | | ??????????????????################???????????????? | | ??????????????????# #???????????????? | | ??????????????????# """ """ """ ##???????????????? | | ??????##########??# """ """ """[#????????????????? | | ??????# #??# """ """ """%#????????????????? | | ??????# = #??# [#????????????????? | | ??????# #??# """ """ #????????????????? | | ??????# #### """ """ #????????????????? | | ??????#!!= + + """ """ ![! #????????????????? | | ??????#!== ## # ! #????????????????? | | ??????#!== ## # !!! #????????????????? | | ??????# ## # %[= #????????????????? | | ??????# ## #######+#######????????????????? | | ###########+##### ##;# #???????????????????? | | #???????????????????? | | #### "??????????????? | | T + "Y?????????????? | | ####????????????????? | | #???????????????????? | | ######### ######### #???????????????????? | | ?# # #???????### ###???????????????????? | | ?#""" =+ #?????????# #?????????????????????? | | ?#""" [ #### #?????????# #?????????????????????? | | ?#""" = #??# #?????????# @ #?????????????????????? | | ?# #??# #?????????# #?????????????????????? | | ?# #??# #?????????#= #?????????????????????? | | #####+###### # ""??????!% ?????????????????????? | | + ?????##* ##????????????????????? | | #####?????????#% #?????????????????????? | | #?????????????# #?????????????????????? | | """ #????????????? r ?????????????????????? | | """ ?????????? g* ?????????????????????? | | """ #### ??????? !%[ ?????????????????????? | | #????????????? =! #????????????????????? | | #????????????# #????????????????????? | | #????????????## ;#????????????????????? | | #????????????##=u ;#????????????????????? | | #########????????????## ;#????????????????????? | | ##?????????????????????? ;?????????????????????? | | ?????????????????????????????????????????????????? | | ?????????????????????????????????????????????????? | | ?????????????????????????????????????????????????? | | ?????????????????????????????????????????????????? | | ?????????????????????????????????????????????????? | | ?????????????????????????????????????????????????? | | ?????????????????????????????????????????????????? | | ?????????????????????????????????????????????????? | | ?????????????????????????????????????????????????? | +----------------------------------------------------+ Best States ------------- Heat Dissipation 28 Energy Generation 15 Energy Capacity 400 Matter Stores 300 Matter Capacity 300 Sight Range 16 Terrain Scan Density 10 ECM Strength 1 Evasion (%) 40 Recoil Reduction 2 Item Schematics ----------------- None Robot Schematics ------------------ None Fabricated ------------ Nothing Alien Tech Used ----------------- None Achievements -------------- None Challenges ------------ None Game ------ Seed GravityGreatMicroactuators Manual? 0 Play Time 00:16:47 Cumulative 2.1 hours Start 2024.04.05 @ 10:17:36 End 2024.04.05 @ 10:35:22 Sessions 1 Manual Loads 0 Difficulty Rogue Special Mode None Game No. 5 Rogue 5 Adventurer 0 Explorer 0 Win Type - Total 0 Types 0/0/0/0/0/0/0/0/0 Lore% 5 Gallery% 6 Achievement% 5 Wizard Run 0 Options --------- Layout 1 ASCII 1 Keyboard 1 Movement Numpad Keybinds 0 Fullscreen 1 Font 24/Smallcaps Map View 50x35 Zoom Use 0% Tactical HUD 1 Map Filters NONE Filters NONE Steam 1 RUN: ab8ba5d2-b507-4fc5-8b57-a861f7cebafd